bitfinex-derivatives/quotes_ETHF0:USTF0_20250123
["timestamp","ask_amount","ask_price","bid_price","bid_amount"]
[1737649313855,0.61101,3272.5,3272.3,72.23886001]
[1737649314160,0.61101,3272.4,3272.3,72.23886001]
[1737649314556,3.81881,3272.4,3272.3,72.23886001]
[1737649314860,7.79855929,3272.4,3272.3,72.23886001]
[1737649315159,0.61101,3272.4,3272.3,72.23886001]
[1737649315355,3.81881,3272.4,3272.3,72.23886001]
[1737649315556,3.2078,3272.4,3272.3,72.23886001]
[1737649316059,3.81881,3272.4,3272.3,72.23886001]
[1737649316462,7.78276617,3272.4,3272.3,72.23886001]
[1737649316658,12.78276617,3272.4,3272.3,71.38510001]
[1737649316864,13.06940951,3272.4,3272.3,68.28604093]
[1737649317058,13.06940951,3272.4,3272.3,65.31661093]
[1737649317254,13.35608187,3272.4,3272.3,64.32111093]
[1737649317567,7.45842853,3272.4,3272.3,64.32111093]
[1737649317859,3.49447236,3272.4,3272.3,64.32111093]
[1737649318069,3.2078,3272.4,3272.3,64.32111093]
[1737649318452,5.8783702,3272.7,3272.5,0.61099]
[1737649318653,5.8783702,3272.7,3272.3,64.32111093]
[1737649318864,5.8783702,3272.7,3272.6,0.61098]
[1737649319063,5.8783702,3272.7,3272.3,41.41102]
[1737649319262,5.8783702,3272.7,3272.1,3.2078]
[1737649319459,5.8783702,3272.7,3272.6,0.61098]
[1737649320155,3.2078,3272.8,3272.2,3.30060264]
[1737649320351,3.2078,3272.8,3272.1,3.2078]
[1737649320558,3.2078,3272.8,3272.7,0.61096]
[1737649320960,0.00457903,3273.0,3272.2,1.5276]
[1737649321163,0.00457903,3273.0,3272.6,3.2078]
[1737649321462,0.00457903,3273.0,3271.9,3.8189]
[1737649321463,0.61094,3272.8,3271.9,3.8189]
[1737649321668,3.2078,3272.5,3272.4,0.61101]
[1737649322462,0.00457903,3273.0,3272.2,3.30060264]
[1737649322767,0.00457903,3273.0,3272.0,1.52773]
[1737649322768,0.00457903,3273.0,3272.9,0.61092]
[1737649323164,3.2078,3273.6,3272.8,3.2078]
[1737649323360,3.2078,3273.6,3271.4,1.7443]
[1737649323361,3.2078,3273.6,3272.4,3.2078]
[1737649323559,3.2078,3272.7,3271.8,3.2078]
[1737649323753,3.2078,3272.3,3271.8,3.2078]
[1737649324066,3.93949405,3272.6,3271.5,3.2078]
[1737649324252,0.61115,3271.7,3271.5,3.2078]
[1737649324458,0.61113,3271.8,3271.7,0.00457903]
[1737649324678,0.61127,3271.1,3270.7,0.61132]
[1737649324863,0.61123,3271.3,3271.0,0.61127]
[1737649325168,3.2078,3271.4,3270.6,3.2078]
[1737649325667,3.93689267,3271.3,3271.0,0.61127]
[1737649325859,3.2078,3271.4,3271.2,0.61123]
[1737649326162,3.2078,3271.4,3271.3,0.61122]
[1737649326565,3.2078,3271.4,3270.7,3.30060264]
[1737649326865,0.61122,3271.3,3270.9,0.61129]
[1737649327161,3.2078,3271.4,3271.1,0.61125]
[1737649327463,3.2078,3271.4,3270.7,3.30060264]
[1737649327661,0.61122,3271.3,3270.7,3.30060264]
[1737649327861,3.2078,3271.4,3270.4,1.7721]
[1737649328162,4.64850325,3271.3,3270.4,1.7721]
[1737649328354,4.03728325,3271.3,3270.4,1.7721]
[1737649328559,3.2078,3271.4,3270.7,3.30060264]
[1737649328765,3.2078,3271.4,3270.8,0.61131]
[1737649328964,4.64850325,3271.3,3270.8,0.6113]
[1737649329164,4.03728325,3271.3,3271.0,0.61126]
[1737649329359,4.03728325,3271.3,3270.7,3.30060264]
[1737649329360,3.2078,3271.4,3270.7,3.30060264]
[1737649329861,3.2078,3271.4,3271.3,0.61122]
[1737649330367,3.2078,3271.9,3271.8,0.61113]
[1737649330556,3.2078,3272.3,3272.2,0.61105]
[1737649330763,3.81883,3272.3,3271.9,0.6111]
[1737649330962,0.00457903,3272.4,3271.5,3.2078]
[1737649331157,3.94104679,3272.2,3271.3,3.2078]
[1737649331366,3.94104679,3272.2,3271.5,3.2078]
[1737649331555,3.2078,3272.3,3271.6,3.30060264]
[1737649331762,3.2078,3272.3,3272.2,0.61105]
[1737649331974,0.00457903,3272.4,3272.3,0.61103]
[1737649332967,0.00457903,3272.4,3272.0,3.2078]
[1737649333164,9.53185903,3272.9,3272.3,0.61103]
[1737649333373,9.53185903,3272.9,3272.8,3.81874]
[1737649333669,7.30314424,3273.1,3272.8,3.2078]
[1737649333867,7.24574424,3273.1,3273.0,0.6109]
[1737649334170,2.84681424,3273.1,3273.0,41.4109]
[1737649334465,1.12367424,3273.1,3273.0,46.4109]
[1737649334961,1.12367424,3273.1,3273.0,40.8]
[1737649335163,1.12367424,3273.1,3272.8,3.2078]
[1737649335369,0.0045861,3273.4,3272.8,3.2078]
[1737649335563,3.05601806,3273.2,3273.1,0.61088]
[1737649335762,0.0045861,3273.4,3273.2,0.61085]
[1737649336064,0.0045861,3273.4,3273.3,0.61085]
[1737649336263,3.66686806,3273.3,3273.2,3.2078]
[1737649336572,0.61088,3273.2,3272.8,3.2078]
[1737649336767,3.05601806,3273.2,3272.8,3.2078]
[1737649337273,0.0045861,3273.4,3272.8,3.2078]
[1737649337567,0.0045861,3273.4,3273.3,3.81865]
[1737649338071,0.0045861,3273.4,3273.3,8.81865]
[1737649338270,0.0045861,3273.4,3273.3,3.81865]
[1737649338472,0.0045861,3273.4,3273.3,8.81865]
[1737649338669,3.06060416,3273.4,3273.3,3.2078]
[1737649338872,3.67143416,3273.4,3273.3,3.2078]
[1737649339078,3.06060416,3273.4,3272.8,0.61093]
[1737649339382,0.0045861,3273.4,3272.7,3.2123861]
[1737649339565,0.0045861,3273.4,3273.1,3.2078]
[1737649339772,0.0045861,3273.4,3272.8,0.61094]
[1737649339968,0.0045861,3273.4,3273.3,0.61085]
[1737649340276,6.1e-06,3273.4,3273.3,3.81865]
[1737649340564,9.45493079,3274.8,3273.3,8.2078]
[1737649340766,9.45493079,3274.8,3274.7,0.61059]
[1737649341167,9.45493079,3274.8,3274.6,3.2078]
[1737649341359,3.05601806,3274.7,3274.2,3.2078]
[1737649341565,3.05601806,3274.7,3274.4,0.61063]
[1737649341765,3.05601806,3274.7,3274.4,0.0045861]
[1737649341963,3.05601806,3274.7,3274.4,0.6152261]
[1737649342167,3.05601806,3274.7,3274.4,0.0045861]
[1737649342363,3.05601806,3274.5,3274.4,0.0045861]
[1737649342664,3.05601806,3274.5,3274.4,0.6152261]
[1737649342884,3.05601806,3274.5,3274.4,0.0045861]
[1737649343063,0.0045861,3275.0,3274.9,0.61055]
[1737649343263,3.06060416,3275.0,3274.9,0.61055]
[1737649343461,3.06060416,3275.0,3274.6,3.2078]
[1737649343664,3.05601806,3274.7,3274.4,0.0045861]
[1737649343863,3.2123861,3275.0,3274.4,0.0045861]
[1737649343864,3.05601806,3274.5,3274.4,0.0045861]
[1737649344265,3.66663806,3274.5,3273.8,0.61073]
[1737649344470,3.05601806,3274.1,3273.4,6.50840264]
[1737649344670,3.05601806,3274.5,3273.4,6.50840264]
[1737649344874,3.05601806,3274.5,3273.8,3.2078]
[1737649345068,3.5875861,3275.0,3273.9,0.61073]
[1737649345069,0.61067,3274.3,3273.9,0.61073]
[1737649345275,3.05601806,3273.8,3273.3,3.2078]
[1737649345474,3.2078,3274.1,3273.8,0.0045861]
[1737649345677,3.05601806,3273.9,3272.4,70.82951357]
[1737649345868,3.05601806,3273.6,3272.9,3.2078]
[1737649346071,4.991,3274.0,3273.5,0.61081]
[1737649346266,3.05601806,3273.1,3273.0,0.61089]
[1737649347077,0.61078,3273.7,3273.3,0.61084]
[1737649347272,3.05601806,3273.5,3272.9,6.50840264]
[1737649347477,3.2078,3274.4,3274.1,0.61069]
[1737649347681,3.05601806,3274.2,3274.1,0.61069]
[1737649347880,1.8612,3274.5,3274.1,0.61069]
[1737649347881,3.05601806,3274.5,3274.4,0.61064]
[1737649348076,3.05601806,3274.5,3274.1,3.2078]
[1737649348273,3.05601806,3274.2,3274.1,0.6107]
[1737649348878,0.0045861,3274.6,3274.5,0.61062]
[1737649349078,3.06060416,3274.6,3274.1,3.2078]
[1737649349270,0.61068,3274.2,3273.9,0.61073]
[1737649349476,3.05601806,3274.1,3274.0,0.61072]
[1737649349780,3.05601806,3273.8,3273.1,3.2078]
[1737649350082,3.05601806,3273.5,3273.4,3.81862]
[1737649350373,3.05601806,3273.4,3273.1,0.61087]
[1737649350572,3.66688806,3273.2,3272.9,0.61091]
[1737649350773,3.05601806,3273.0,3272.9,0.61091]
[1737649350973,3.05601806,3273.0,3272.7,3.2078]
[1737649351280,3.05601806,3273.0,3272.4,67.62171357]
[1737649351281,0.61097,3272.7,3272.4,64.93212093]
[1737649351480,3.05601806,3272.5,3272.4,64.93212093]
[1737649351789,1.7064,3272.9,3272.8,0.61094]
[1737649351970,3.2078,3273.5,3273.4,0.61083]
[1737649352173,3.05601806,3273.0,3272.9,0.61092]
[1737649352376,3.05601806,3273.1,3273.0,0.6109]
[1737649353281,0.0045861,3273.2,3273.0,0.6109]
[1737649353282,0.0045861,3273.2,3273.0,3.30060264]
[1737649353478,0.0045861,3273.2,3273.1,3.81868]
[1737649353682,6.1e-06,3273.2,3273.1,3.81868]
[1737649353875,6.1e-06,3273.2,3273.1,8.81868]
[1737649354084,6.1e-06,3273.2,3273.1,49.61868]
[1737649354888,3.2078,3274.9,3274.8,0.61057]
[1737649355085,3.2078,3274.9,3274.4,3.2078]
[1737649355380,6.26381806,3274.5,3273.8,3.2078]
[1737649355575,3.05601806,3273.9,3273.8,0.61075]
[1737649355976,3.2078,3274.1,3274.0,0.61072]
[1737649356880,0.0045861,3274.2,3274.1,0.6107]
[1737649357276,6.1e-06,3274.2,3274.1,5.6107]
[1737649357881,14.68275919,3276.9,3274.1,5.0]
[1737649357882,3.2078,3275.5,3274.1,5.0]
[1737649358089,6.26381806,3276.0,3275.9,0.61036]
[1737649358290,3.05601806,3275.6,3275.2,3.2078]
[1737649358489,3.05601806,3275.6,3275.1,4.82687264]
[1737649358490,3.05601806,3275.6,3275.5,0.61044]
[1737649358690,3.05601806,3275.2,3275.1,0.61051]
[1737649358886,3.05601806,3275.5,3275.4,0.61045]
[1737649359092,0.00457868,3275.5,3275.4,0.61045]
[1737649360493,8.68e-06,3275.5,3275.4,5.61045]
[1737649360897,13.30855655,3276.9,3275.8,1.52595]
[1737649361096,3.05601806,3276.6,3276.2,3.30060264]
[1737649361294,3.05601806,3276.6,3276.5,0.61025]
[1737649361507,3.05601806,3276.3,3276.2,0.61031]
[1737649362903,0.00457868,3276.6,3276.5,0.61025]
[1737649363694,3.06059674,3276.6,3276.5,0.61025]
[1737649363894,3.06059674,3276.6,3275.4,0.61045]
[1737649363895,0.61034,3276.0,3275.4,0.61045]
[1737649364096,3.05601806,3275.6,3275.5,0.61044]
[1737649364304,3.2078,3275.9,3275.2,3.30060264]
[1737649364600,3.2078,3276.4,3276.3,0.61028]
[1737649365005,6.26381806,3276.4,3276.1,0.61031]
[1737649365301,6.26381806,3276.4,3275.7,3.30060264]
[1737649365302,3.05601806,3276.0,3275.7,3.30060264]
[1737649365607,3.2078,3276.4,3276.3,0.61029]
[1737649365904,3.05601806,3276.1,3276.0,0.61034]
[1737649366296,3.2078,3276.4,3276.3,0.61029]
[1737649366496,6.26381806,3276.4,3275.7,3.30060264]
[1737649366807,3.2078,3276.4,3276.3,0.61029]
[1737649367300,6.26381806,3276.4,3276.2,0.6103]
[1737649367497,6.26381806,3276.4,3275.7,3.30060264]
[1737649367498,3.05601806,3276.2,3276.1,0.61031]
[1737649367698,3.05601806,3276.2,3275.7,3.30060264]
[1737649368005,3.05601806,3275.9,3275.8,0.61038]
[1737649368197,3.05601806,3276.2,3275.8,0.61038]
[1737649368397,3.2078,3276.5,3275.7,3.30060264]
[1737649368596,3.2078,3276.5,3276.4,0.61027]
[1737649368800,2.07071124,3276.5,3276.4,0.61027]
[1737649370005,5.1267293,3276.5,3276.4,0.61027]
[1737649370204,2.07071124,3276.5,3276.4,0.61027]
[1737649370396,0.00457868,3276.6,3276.4,8.2078]
[1737649370606,2.0533,3277.9,3276.4,3.2078]
[1737649370907,3.05601806,3277.8,3277.7,0.61003]
[1737649371100,3.05601806,3277.8,3277.7,3.81783]
[1737649371305,3.2078,3278.4,3277.7,3.2078]
[1737649371502,2.39336814,3278.0,3277.9,0.60999]
[1737649371701,2.39336814,3278.3,3278.2,0.60993]
[1737649371897,0.00457868,3278.4,3277.7,1.52964868]
[1737649371898,0.00457868,3278.4,3277.7,0.00457868]
[1737649372103,2.39336814,3277.8,3277.7,0.00457868]
[1737649372299,3.00337814,3277.8,3277.7,0.00457868]
[1737649372510,2.39336814,3277.8,3277.7,0.00457868]
[1737649373608,2.39336814,3277.8,3276.8,3.2078]
[1737649373813,2.39336814,3277.8,3276.4,3.2078]
[1737649373814,2.39336814,3276.9,3276.4,3.2078]
[1737649374108,2.39336814,3277.1,3277.0,0.61016]
[1737649375508,3.2078,3277.6,3276.7,0.00457868]
[1737649375704,2.39336814,3277.0,3276.7,0.00457868]
[1737649375913,2.39336814,3276.9,3276.7,0.00457868]
[1737649376101,2.39336814,3276.9,3276.8,0.61019]
[1737649376300,1.8325,3277.7,3276.7,0.00457868]
[1737649376609,2.39336814,3276.9,3276.8,0.61019]
[1737649376812,2.39336814,3277.1,3276.7,0.00457868]
[1737649377012,2.39336814,3277.1,3277.0,0.61016]
[1737649377313,1.8325,3277.7,3277.4,0.61007]
[1737649377512,2.39336814,3277.4,3277.3,0.6101]
[1737649377813,2.39336814,3277.3,3277.2,0.61012]
[1737649378012,1.8325,3277.7,3276.7,1.53009868]
[1737649378013,2.39336814,3277.2,3276.7,0.00457868]
[1737649378207,2.39336814,3277.3,3277.2,0.61012]
[1737649378605,2.39336814,3277.3,3276.7,0.00457868]
[1737649378798,3.81786,3277.5,3277.1,0.61013]
[1737649379003,2.39336814,3277.1,3276.7,0.00457868]
[1737649379205,2.39336814,3277.1,3277.0,0.61016]
[1737649379512,2.39336814,3277.1,3276.7,0.00457868]
[1737649379708,2.39336814,3276.8,3276.7,0.00457868]
[1737649379914,2.39336814,3276.8,3276.7,0.61478868]
[1737649380314,3.2078,3277.5,3276.7,3.30518132]
[1737649380516,1.8325,3277.7,3277.2,3.30060264]
[1737649380809,1.8325,3277.7,3277.6,0.61005]
[1737649381003,3.05196922,3277.7,3277.6,0.61005]
[1737649383204,1.21946922,3277.7,3277.6,0.61005]
[1737649383613,1.9593,3278.2,3278.1,0.60995]
[1737649384115,3.17876922,3278.2,3278.1,0.60995]
[1737649384706,3.17876922,3278.2,3278.1,0.60996]
[1737649386210,1.21946922,3278.2,3278.1,0.60996]
[1737649386417,1.21946922,3278.2,3277.7,45.62566264]
[1737649386418,3.2078,3278.7,3278.3,0.60993]
[1737649386603,3.2078,3279.5,3278.7,1.52464]
[1737649386804,3.2078,3279.5,3279.4,0.60972]
[1737649387110,4.02904852,3280.4,3280.3,0.60955]
[1737649387308,4.02904852,3280.4,3279.8,1.5241]
[1737649387309,3.2078,3281.1,3279.9,3.2078]
[1737649387511,1.21946922,3280.8,3280.4,1.52385]
[1737649387812,1.2240479,3280.8,3280.7,0.60948]
[1737649388214,0.60949,3280.7,3280.2,0.61413868]
[1737649388514,1.21946922,3280.3,3280.2,0.61414868]
[1737649388918,0.00457868,3280.8,3280.7,0.60948]
[1737649389116,1.2240479,3280.8,3280.2,3.21237868]
[1737649389414,1.2240479,3280.8,3280.2,0.00457868]
[1737649389415,1.21946922,3280.3,3280.2,0.00457868]
[1737649389812,1.21946922,3280.3,3280.2,0.61415868]
[1737649390013,1.21946922,3280.3,3280.2,0.00457868]
[1737649391816,9.42726922,3280.3,3279.3,3.2078]
[1737649392014,1.21946922,3279.4,3278.8,3.5460883]
[1737649392215,1.21946922,3279.2,3279.1,0.60979]
[1737649392416,1.21946922,3279.5,3279.0,3.2078]
[1737649392611,1.21946922,3279.5,3279.4,0.60973]
[1737649392813,1.21946922,3279.3,3279.2,0.60977]
[1737649393014,1.21946922,3279.5,3279.4,0.60973]
[1737649393211,3.2078,3279.9,3279.4,0.60973]
[1737649393412,1.21946922,3279.5,3279.3,0.60974]
[1737649393616,1.21946922,3279.3,3279.2,0.60977]
[1737649394316,1.21946922,3279.3,3278.9,0.00457868]
[1737649394513,1.21946922,3279.0,3278.9,0.61443868]
[1737649395020,3.2078,3279.7,3278.9,0.00457868]
[1737649395319,1.21946922,3279.0,3278.9,0.61442868]
[1737649395914,1.9733,3280.0,3278.9,0.00457868]
[1737649396115,1.21946922,3279.2,3279.0,3.2078]
[1737649396313,3.2078,3279.7,3278.9,0.00457868]
[1737649396521,1.21946922,3279.0,3278.9,0.61443868]
[1737649396718,1.21946922,3279.0,3278.9,0.00457868]
[1737649397412,1.21946922,3279.0,3278.0,3.2078]
[1737649397613,1.21946922,3279.0,3278.4,3.2078]
[1737649397824,1.21946922,3279.0,3278.9,0.60986]
[1737649398023,3.2078,3279.9,3278.8,6.50840264]
[1737649398226,1.21946922,3279.2,3279.1,0.60981]
[1737649399220,1.21946922,3279.2,3278.8,6.51298132]
[1737649399422,1.21946922,3278.9,3278.8,3.21237868]
[1737649399625,4.42726922,3278.9,3278.8,0.00457868]
[1737649399816,5.03712922,3278.9,3278.8,0.00457868]
[1737649400214,8.2078,3278.9,3277.9,3.2078]
[1737649400420,1.21946922,3278.0,3277.9,3.2078]
[1737649401025,0.61008,3277.8,3277.4,64.32111093]
[1737649401219,5.03738922,3277.5,3277.4,64.32111093]
[1737649401733,4.42726922,3277.5,3277.4,64.32111093]
[1737649401925,3.04882,3279.5,3277.4,64.32111093]
[1737649401926,0.00457868,3277.8,3277.4,64.32111093]
[1737649402123,0.00457868,3277.8,3277.7,0.61009]
[1737649402324,0.00457868,3277.8,3277.7,3.91069264]
[1737649402829,3.2078,3279.1,3278.0,1.52506]
[1737649403020,3.2078,3279.1,3278.6,3.30060264]
[1737649403217,1.21946922,3278.5,3278.4,0.60996]
[1737649403418,1.21946922,3278.8,3278.7,0.6099]
[1737649403614,1.21946922,3278.5,3278.3,0.60998]
[1737649403823,1.21946922,3278.4,3278.2,3.2078]
[1737649404020,1.21946922,3278.4,3278.3,41.40998]
[1737649404435,0.00457868,3278.7,3278.6,0.60992]
[1737649404622,0.00457868,3278.7,3278.6,7.11832264]
[1737649404623,8.68e-06,3278.7,3278.6,7.11832264]
[1737649404821,8.68e-06,3278.7,3278.6,3.91052264]
[1737649405023,8.68e-06,3278.7,3278.6,47.91832264]
[1737649405224,8.68e-06,3278.7,3278.6,52.91832264]
[1737649405632,2.0578,3279.8,3278.6,47.30840264]
[1737649405931,1.21946922,3279.2,3278.2,2.0226]
[1737649406227,4.42726922,3279.6,3279.5,0.60975]
[1737649406433,3.2078,3280.3,3280.2,0.60961]
[1737649406633,3.2078,3280.3,3279.9,0.60967]
[1737649406928,2.0,3280.6,3280.5,0.60957]
[1737649406929,2.00457868,3280.6,3280.5,0.60957]
[1737649407228,2.00457868,3280.6,3279.9,0.00457868]
[1737649407623,3.2078,3280.3,3279.9,0.00457868]
[1737649408024,3.2078,3280.3,3280.2,0.60962]
[1737649408224,2.00457868,3280.6,3279.9,0.00457868]
[1737649408626,2.00457868,3280.6,3280.2,0.60962]
[1737649408826,2.00457868,3280.6,3280.0,0.60966]
[1737649409028,5.21237868,3280.6,3280.0,0.60966]
[1737649409227,0.60962,3280.3,3279.9,0.00457868]
[1737649409424,3.2078,3280.2,3279.9,0.00457868]
[1737649409927,3.81743,3280.2,3279.9,0.00457868]
[1737649410122,0.60964,3280.1,3279.9,0.00457868]
[1737649410429,9.0155226,3280.1,3278.4,3.2078]
[1737649410636,3.2078,3279.0,3278.2,0.60999]
[1737649410828,3.2078,3278.6,3278.1,0.61]
[1737649411134,3.2078,3279.3,3278.6,0.60992]
[1737649411331,3.2078,3279.3,3278.0,6.50840264]
[1737649411531,3.2078,3279.1,3278.0,6.50840264]
[1737649411830,3.2078,3279.7,3278.5,3.30060264]
[1737649412025,0.00457868,3278.9,3278.8,0.60988]
[1737649412434,0.00457868,3278.9,3278.5,3.30060264]
[1737649412825,0.00457868,3278.9,3278.5,0.60993]
[1737649413029,0.00457868,3278.9,3278.4,3.2078]
[1737649413030,0.00457868,3278.9,3278.4,3.81775]
[1737649413230,0.60996,3278.4,3278.3,0.00457868]
[1737649413530,3.2078,3278.7,3276.8,11.76392004]
[1737649413531,0.28609078,3278.6,3277.4,4.69349803]
[1737649413836,3.2078,3277.7,3277.4,4.69349803]
[1737649414133,3.8613,3278.3,3277.5,3.30060264]
[1737649414434,3.2078,3278.8,3278.0,7.11842264]
[1737649414636,3.2078,3278.4,3278.0,3.30060264]
[1737649415040,3.2078,3278.4,3278.0,3.91063264]
[1737649415627,3.2078,3278.8,3278.0,6.50840264]
[1737649415829,3.2078,3278.8,3278.1,0.61001]
[1737649416021,3.2078,3278.8,3278.2,0.60999]
[1737649416230,3.2078,3278.8,3278.0,3.30060264]
[1737649416432,3.2078,3278.8,3278.3,0.60997]
[1737649416732,3.2078,3278.8,3278.4,0.60995]
[1737649416928,3.2078,3278.8,3278.4,0.60994]
[1737649417236,3.2078,3278.8,3278.0,3.30060264]
[1737649417628,3.2078,3278.8,3278.1,0.61]
[1737649417934,3.2078,3278.8,3278.0,3.91063264]
[1737649418131,3.2078,3278.8,3278.0,3.30060264]
[1737649418832,3.2078,3278.3,3277.6,0.00457868]
[1737649419033,3.2078,3278.3,3277.7,41.41007]
[1737649419233,3.2078,3278.3,3277.7,41.41008]
[1737649419435,3.2078,3278.3,3277.7,40.8]
[1737649420036,3.2078,3278.3,3277.8,0.61007]
[1737649420339,3.2078,3278.3,3278.0,3.30060264]
[1737649420635,3.2078,3278.8,3278.0,3.30060264]
[1737649420834,3.2078,3278.8,3277.7,40.8]
[1737649421034,3.2078,3278.7,3277.9,0.61003]
[1737649421337,3.2078,3278.7,3278.1,0.61001]
[1737649421534,3.2078,3278.7,3277.7,40.8]
[1737649421535,3.2078,3278.7,3278.4,0.60995]
[1737649421741,3.2078,3278.7,3278.6,0.60992]
[1737649421934,0.00457868,3278.9,3278.0,3.30060264]
[1737649422136,0.00457868,3278.9,3278.5,3.30060264]
[1737649422638,0.00457868,3278.9,3278.8,0.60988]
[1737649423340,0.00457868,3278.9,3278.8,40.8]
[1737649423533,0.00457868,3278.9,3278.5,3.30060264]
[1737649423734,0.00457868,3278.9,3278.8,0.60988]
[1737649423933,0.00457868,3278.9,3278.8,40.8]
[1737649424134,0.00457868,3278.9,3278.8,41.40988]
[1737649424443,0.00457868,3278.9,3278.5,0.60993]
[1737649424642,0.00457868,3278.9,3278.4,0.60994]
[1737649424843,0.00457868,3278.9,3278.3,3.2078]
[1737649425040,0.00457868,3278.9,3278.3,3.81777]
[1737649425245,0.00185504,3278.4,3278.3,3.81777]
[1737649425841,0.00185504,3278.4,3278.3,3.2078]
[1737649426040,0.00185504,3278.4,3278.2,0.60999]
[1737649426346,0.00185504,3278.4,3278.3,0.60998]
[1737649427247,5.04e-06,3278.4,3278.3,0.60998]
[1737649428045,5.04e-06,3278.4,3278.3,41.40998]
[1737649428637,5.04e-06,3278.4,3278.3,105.73109093]
[1737649429557,5.04e-06,3278.4,3278.3,64.93109093]
[1737649430743,5.04e-06,3278.4,3278.3,64.32111093]
[1737649431342,5.04e-06,3278.4,3278.3,64.93109093]
[1737649432148,5.04e-06,3278.4,3278.3,64.32111093]
[1737649432444,0.60996504,3278.4,3278.3,64.32111093]
[1737649432949,5.60996504,3278.4,3278.3,64.32111093]
[1737649433150,9.84723583,3278.4,3278.3,60.29369703]
[1737649433448,10.13331432,3278.4,3278.3,60.29369703]
[1737649434440,0.28608353,3278.4,3278.3,60.29369703]
[1737649434949,5.04e-06,3278.4,3278.3,60.29369703]
[1737649435249,0.60996504,3278.4,3278.3,60.29369703]
[1737649436042,4.51693426,3278.4,3278.3,60.29369703]
[1737649436241,0.60996504,3278.4,3278.3,60.29369703]
[1737649436946,3.98781738,3278.4,3278.3,63.59633733]
[1737649437146,3.98781738,3278.4,3278.3,64.20631733]
[1737649437341,5.04e-06,3278.4,3278.3,60.90367703]
[1737649438048,5.04e-06,3278.4,3278.3,64.20631733]
[1737649438654,5.04e-06,3278.4,3278.3,105.00631733]
[1737649440150,5.04e-06,3278.4,3278.3,101.70367703]
[1737649440845,5.04e-06,3278.4,3278.3,60.90367703]
[1737649442241,5.04e-06,3278.4,3278.3,60.29369703]
[1737649442652,0.60996504,3278.4,3278.3,60.29369703]
[1737649443152,9.58357463,3278.4,3278.3,60.29369703]
[1737649443348,10.30140768,3278.4,3278.3,60.29369703]
[1737649443653,10.58744126,3278.4,3278.3,60.29369703]
[1737649443851,4.97748126,3278.4,3278.3,59.18696476]
[1737649444049,0.57204771,3278.4,3278.3,59.18696476]
[1737649444261,0.28603862,3278.4,3278.3,59.18696476]
[1737649444555,5.04e-06,3278.4,3278.3,59.18696476]
[1737649445248,5.60996504,3278.4,3278.3,57.93174476]
[1737649445455,10.215074,3278.4,3278.3,57.93174476]
[1737649445648,12.336074,3278.4,3278.3,57.25088476]
[1737649445847,12.336074,3278.4,3278.3,55.53409891]
[1737649446057,7.336074,3278.4,3278.3,55.53409891]
[1737649446355,12.336074,3278.4,3278.3,55.53409891]
[1737649446748,7.336074,3278.4,3278.3,55.53409891]
[1737649447355,7.336074,3278.4,3278.3,56.14407891]
[1737649447542,0.89602924,3278.4,3278.3,56.14407891]
[1737649447741,0.60996504,3278.4,3278.3,55.53409891]
[1737649448251,2.54016504,3278.4,3278.3,55.53409891]
[1737649448557,2.82622924,3278.4,3278.3,55.53409891]
[1737649448947,11.72542961,3278.4,3278.3,55.53409891]
[1737649449151,12.15675014,3278.4,3278.3,55.53409891]
[1737649450456,12.15662862,3278.4,3278.3,55.53409891]
[1737649450854,12.15662862,3278.4,3278.3,50.18537277]
[1737649451057,12.15662862,3278.4,3278.3,46.59827277]
[1737649451058,15.45926892,3278.4,3278.3,46.59827277]
[1737649451260,15.45926892,3278.4,3278.3,45.19388277]
[1737649451553,15.45926892,3278.4,3278.3,42.980574]
[1737649451764,12.15662862,3278.4,3278.3,42.141574]
[1737649452259,12.10738361,3278.4,3278.3,42.141574]
[1737649452456,15.41002391,3278.4,3278.3,41.481804]
[1737649452756,15.41002391,3278.4,3278.3,38.975734]
[1737649452951,15.41002391,3278.4,3278.3,38.218044]
[1737649453152,15.41002391,3278.4,3278.3,36.59755014]
[1737649453745,15.41002391,3278.4,3278.3,35.17748014]
[1737649453951,15.41002391,3278.4,3278.3,32.76369705]
[1737649454254,15.41002391,3278.4,3278.3,19.5674621]
[1737649454255,23.67682391,3278.4,3278.3,19.5674621]
[1737649454454,23.67682391,3278.4,3277.6,0.00457868]
[1737649454455,23.06686391,3278.4,3277.6,0.00457868]
[1737649454758,8.2668,3277.7,3275.6,3.2078]
[1737649455054,8.2668,3277.7,3275.1,3.3026403]
[1737649455055,3.2078,3276.1,3275.7,5.96133078]
[1737649455259,3.2078,3276.1,3276.0,0.6104]
[1737649455650,3.2078,3276.1,3276.0,16.57173078]
[1737649455851,3.2078,3276.1,3276.0,0.6104]
[1737649456053,3.2078,3276.1,3276.0,16.57173078]
[1737649456251,0.00457868,3276.4,3276.3,0.61035]
[1737649456452,0.00457868,3276.4,3276.3,6.57168078]
[1737649456656,0.00457868,3276.4,3276.3,16.57168078]
[1737649456850,3.2078,3277.0,3276.9,0.61024]
[1737649457161,3.2078,3277.0,3276.9,47.37157078]
[1737649457358,3.2078,3277.0,3276.9,57.37157078]
[1737649457660,3.2078,3277.0,3276.9,47.37157078]
[1737649458155,3.2078,3277.0,3276.9,41.41024]
[1737649458753,3.2078,3277.0,3276.9,40.8]
[1737649459153,3.2078,3277.0,3276.9,41.41024]
[1737649459362,7.15586992,3277.0,3276.6,0.00457868]
[1737649459562,0.61027,3276.7,3276.6,0.00457868]
[1737649459962,4.6653883,3276.7,3276.6,0.00457868]
[1737649460559,0.61025,3276.9,3276.6,0.00457868]
[1737649460859,3.89397566,3276.9,3276.6,0.00457868]
[1737649461063,0.61027,3276.7,3276.6,0.00457868]
[1737649461257,0.28624885,3276.8,3275.9,1.0723]
[1737649461457,3.2078,3276.0,3275.9,1.68272]
[1737649461859,3.2078,3276.0,3275.9,17.64405078]
[1737649462060,3.2078,3276.9,3276.4,0.61033]
[1737649462365,7.73187781,3276.9,3276.7,0.61026]
[1737649462559,7.12162781,3276.9,3276.8,0.61025]
[1737649462761,3.2078,3276.9,3276.8,0.61025]
[1737649462963,3.2078,3276.9,3276.8,40.8]
[1737649463161,7.23089974,3276.9,3276.0,2.0486]
[1737649463459,3.2078,3276.5,3276.4,0.61033]
[1737649463664,0.61026,3276.8,3276.6,0.61028]
[1737649463863,0.6103,3276.6,3276.4,0.61032]
[1737649464063,0.61031,3276.6,3276.4,0.61033]
[1737649464267,3.81812,3276.5,3276.3,0.61034]
[1737649464464,3.81812,3276.5,3276.4,0.61033]